bitfinex/quotes_ETHUSD_20240824
["timestamp","ask_amount","ask_price","bid_price","bid_amount"]
[1724458939016,0.04184869,2766.6,2766.5,9.54224]
[1724458939201,0.04184869,2766.6,2766.5,7.22934]
[1724458939510,0.04184869,2766.6,2766.5,3.61467]
[1724458940429,0.04184869,2766.6,2766.1,6.61507]
[1724458940430,1.92804549,2766.6,2766.1,6.61507]
[1724458940716,0.75472734,2766.4,2766.2,3.61505]
[1724458940870,0.75472734,2766.5,2766.2,3.61505]
[1724458941632,0.75472734,2766.4,2766.2,3.61505]
[1724458942294,0.75472734,2766.3,2766.2,3.61506]
[1724458942488,1.54987605,2766.6,2766.3,3.61493]
[1724458942489,0.75472734,2766.4,2766.3,3.61493]
[1724458943104,0.75472734,2766.4,2766.1,10.23017]
[1724458943627,0.75472734,2766.4,2766.1,6.61507]
[1724458944007,1.13171808,2766.5,2765.9,3.61541]
[1724458944008,0.75472734,2766.3,2765.9,3.61541]
[1724458944226,0.75472734,2766.2,2765.9,3.61541]
[1724458945032,0.75472734,2766.2,2765.9,3.61537]
[1724458945237,0.75472734,2766.2,2766.0,3.61524]
[1724458946035,0.75472734,2766.2,2765.8,3.61549]
[1724458946203,0.79474728,2766.1,2765.8,3.61549]
[1724458946393,0.79474728,2766.1,2765.9,3.61544]
[1724458947444,0.79474728,2766.1,2765.9,7.23079]
[1724458947670,0.79474728,2766.1,2766.0,3.61532]
[1724458947838,0.04001994,2766.1,2766.0,3.61532]
[1724458948236,0.79474728,2766.1,2766.0,3.61532]
[1724458948734,0.04001994,2766.1,2766.0,3.61532]
[1724458948936,0.04001994,2766.1,2766.0,7.23064]
[1724458949137,0.75472734,2766.2,2766.1,3.61519]
[1724458949681,1.13171808,2766.3,2766.1,3.61519]
[1724458949825,0.04004455,2766.2,2766.1,3.61519]
[1724458950026,1.13171808,2766.3,2766.1,3.61519]
[1724458950226,0.79448938,2766.2,2766.1,3.61519]
[1724458952169,0.04004455,2766.2,2766.1,10.223243]
[1724458952471,0.75444483,2766.3,2766.2,3.61506]
[1724458952888,0.75444483,2766.3,2765.9,3.61534]
[1724458953171,0.75444483,2766.3,2765.8,2.2698]
[1724458953172,0.75444483,2766.2,2766.0,3.61531]
[1724458953323,0.75444483,2766.2,2765.7,3.61565]
[1724458953524,0.03987162,2766.1,2765.7,8.998436]
[1724458953898,0.0398208,2766.0,2765.8,3.61558]
[1724458954969,0.0398208,2766.0,2765.9,3.61545]
[1724458956661,0.79426563,2766.0,2765.9,3.61545]
[1724458956859,0.0398208,2766.0,2765.9,3.61545]
[1724458957387,0.0398208,2766.0,2765.8,3.6155]
[1724458957671,0.0398208,2766.0,2765.9,6.9513766]
[1724458957874,0.0398208,2766.0,2765.9,10.5668266]
[1724458958089,0.75444483,2766.1,2765.9,4.5152766]
[1724458958245,0.75444483,2766.1,2765.9,3.61545]
[1724458958440,0.0397641,2766.0,2765.9,3.61545]
[1724458958775,0.79420893,2766.0,2765.7,3.61562]
[1724458959486,0.79420893,2766.0,2765.8,3.61557]
[1724458960238,0.79420893,2766.0,2765.7,3.61561]
[1724458960841,0.79420893,2766.0,2765.7,7.23124]
[1724458961332,0.79420893,2766.0,2765.7,7.23125]
[1724458962053,0.79420893,2766.0,2765.8,3.61555]
[1724458962256,0.79420893,2766.0,2765.9,3.61545]
[1724458962573,0.79420893,2766.0,2765.9,9.667]
[1724458962869,1.13171808,2766.1,2766.0,7.23064]
[1724458963033,1.13171808,2766.1,2766.0,7.78064]
[1724458963369,1.13171808,2766.1,2766.0,9.23582475]
[1724458963741,0.04184869,2766.6,2766.1,3.61511]
[1724458963957,0.04184869,2766.6,2766.0,5.62050475]
[1724458963958,0.04184869,2766.6,2766.0,3.61523]
[1724458964158,3.65647869,2766.6,2766.0,3.61523]
[1724458964359,0.0386752,2766.5,2766.0,3.61523]
[1724458965935,0.0386752,2766.5,2766.0,7.23047]
[1724458967257,0.0386752,2766.5,2766.1,0.966657]
[1724458967663,0.0386752,2766.5,2766.2,3.61498]
[1724458968150,0.0386752,2766.5,2766.4,3.6148]
[1724458968656,0.0386752,2766.5,2766.2,3.61496]
[1724458968857,0.0386752,2766.5,2766.1,3.61519]
[1724458969063,0.0386752,2766.5,2766.2,3.61505]
[1724458969268,0.0386752,2766.5,2766.2,7.23003]
[1724458969569,0.0386752,2766.5,2766.2,4.337983]
[1724458969776,0.0386752,2766.5,2766.2,7.952963]
[1724458970282,0.0386752,2766.5,2766.3,3.61492]
[1724458970689,0.0386752,2766.5,2766.4,3.6148]
[1724458970886,0.0386752,2766.5,2766.2,3.61495]
[1724458971776,0.0386752,2766.5,2766.1,3.61519]
[1724458971955,2.2895752,2766.5,2766.1,3.61519]
[1724458975316,2.2895752,2766.5,2766.0,3.61528]
[1724458975480,4.1857894,2766.4,2765.8,11.05547]
[1724458975683,3.61488,2766.4,2765.8,11.05547]
[1724458976353,2.2895752,2766.5,2765.8,13.45787]
[1724458976697,0.33776935,2766.4,2766.0,3.61532]
[1724458976853,2.2895752,2766.5,2766.0,7.23064]
[1724458977186,0.33777281,2766.4,2766.0,3.61532]
[1724458977392,0.0386752,2766.5,2766.1,0.361532]
[1724458977696,0.33777216,2766.4,2766.0,3.61525]
[1724458977910,0.03868113,2766.4,2766.1,3.61519]
[1724458978118,2.3841,2766.5,2765.8,7.44]
[1724458978270,0.04184869,2766.6,2765.8,7.44]
[1724458978271,2.3841,2766.1,2765.8,7.44]
[1724458978966,0.03843863,2766.0,2765.9,6.01785]
[1724458979161,0.03843863,2766.0,2765.9,9.6333]
[1724458979405,0.04184869,2766.6,2766.3,3.61481]
[1724458979709,0.33777685,2766.5,2766.4,3.61478]
[1724458979911,0.04184869,2766.6,2766.4,3.61478]
[1724458979912,0.04184869,2766.6,2766.5,3.61467]
[1724458980115,0.04184869,2766.6,2766.5,7.952285]
[1724458980470,0.79678979,2766.6,2766.5,7.952285]
[1724458980818,0.79678979,2766.6,2766.5,8.502285]
[1724458980819,0.04184869,2766.6,2766.5,8.502285]
[1724458981541,0.08048744,2766.6,2766.5,8.502285]
[1724458981702,0.08048744,2766.6,2766.5,4.887615]
[1724458982070,0.64698295,2766.6,2766.5,4.887615]
[1724458984167,0.64698295,2766.6,2766.5,4.337615]
[1724458984424,0.64698295,2766.6,2766.0,3.61522]
[1724458984425,1.40192405,2766.6,2766.2,3.61497]
[1724458984581,0.7549411,2766.3,2765.8,3.61549]
[1724458984769,0.7549411,2766.1,2765.5,2.4024]
[1724458984969,1.13241165,2766.2,2765.8,3.61551]
[1724458984970,0.7549411,2766.0,2765.8,3.61551]
[1724458985205,0.79348004,2766.0,2765.8,3.61551]
[1724458985432,0.79348004,2766.0,2765.8,4.338637]
[1724458986016,0.79348004,2766.0,2765.8,0.723127]
[1724458986215,0.79348004,2766.0,2765.6,3.61576]
[1724458986216,0.79348004,2766.0,2765.7,3.61564]
[1724458986545,0.7549411,2765.9,2765.7,3.61564]
[1724458986901,0.0384024,2765.8,2765.7,3.61564]
[1724458987508,0.7549411,2766.0,2765.8,3.61557]
[1724458987902,0.7549411,2765.9,2765.8,3.61557]
[1724458988092,0.7549411,2765.9,2765.6,3.61576]
[1724458988292,0.7549411,2765.9,2765.6,4.217576]
[1724458988599,0.0384024,2765.8,2765.6,4.217576]
[1724458989787,0.0384024,2765.8,2765.6,0.601816]
[1724458990032,0.7933435,2765.8,2765.5,3.0]
[1724458990400,0.7933435,2765.8,2764.9,7.44]
[1724458990401,3.61607,2765.5,2764.9,11.05675]
[1724458990745,0.75417743,2765.3,2764.9,11.05675]
[1724458991035,0.75417743,2765.3,2764.7,23.45698]
[1724458991036,5.50173358,2765.3,2764.7,23.45698]
[1724458991208,5.50173358,2765.3,2764.7,19.84]
[1724458991209,3.61653,2765.1,2764.7,19.84]
[1724458991562,0.0375177,2765.0,2764.7,19.84]
[1724458991923,0.0375177,2765.0,2764.7,23.45702]
[1724458992309,3.13827743,2765.2,2764.7,23.45702]
[1724458992504,0.03716569,2764.9,2764.7,23.45702]
[1724458992708,3.13827743,2765.2,2764.7,3.74146478]
[1724458992919,0.03710077,2764.8,2764.6,7.23413]
[1724458993246,3.13827743,2765.2,2764.6,7.23412]
[1724458993418,2.3841,2765.2,2764.4,9.01977]
[1724458993753,3.61666,2765.0,2764.4,9.01977]
[1724458994237,0.03715164,2764.9,2764.4,9.01977]
[1724458994442,0.03715164,2764.9,2764.5,1.645977]
[1724458994646,0.03715164,2764.9,2764.5,4.645977]
[1724458995311,3.61651,2765.1,2764.5,8.263247]
[1724458995513,0.03707267,2764.8,2764.5,8.263247]
[1724458995707,3.61651,2765.1,2764.5,8.263247]
[1724458995921,3.61651,2765.1,2764.6,1.4282957]
[1724458996133,0.03717439,2765.0,2764.6,1.4282957]
[1724458998325,0.03717439,2765.0,2764.5,1.645977]
[1724458999110,0.03717439,2765.0,2764.5,5.263227]
[1724458999540,0.03717439,2765.0,2764.6,3.61715]
[1724458999926,2.3841,2765.2,2764.6,3.61715]
[1724459000130,0.03701366,2764.9,2764.6,3.61715]
[1724459000331,6.00051,2765.2,2764.6,4.5051937]
[1724459000667,6.00051,2765.2,2764.6,3.61715]
[1724459000839,0.03710131,2765.1,2764.6,3.61715]
[1724459001175,0.03710131,2765.1,2764.7,3.61699]
[1724459001334,0.03710131,2765.1,2764.8,3.68912883]
[1724459001538,6.01751,2765.5,2764.8,3.68912883]
[1724459001772,0.03537067,2765.0,2764.8,3.68912883]
[1724459002074,2.4015,2765.5,2764.9,4.22359288]
[1724459002282,6.01756,2765.5,2764.9,3.61675]
[1724459002428,6.01756,2765.5,2764.7,5.99622]
[1724459002950,3.61624,2765.3,2764.7,5.99622]
[1724459003332,0.03547236,2765.2,2764.7,5.99622]
[1724459003537,0.03547236,2765.2,2764.8,0.961327]
[1724459003739,0.03547236,2765.2,2764.8,4.578217]
[1724459003932,3.61624,2765.3,2764.8,4.578217]
[1724459004165,0.03542152,2765.1,2764.8,4.578217]
[1724459004373,0.03547236,2765.2,2764.8,4.578217]
[1724459004655,3.61624,2765.3,2764.9,0.6957517]
[1724459004858,0.03542152,2765.1,2764.9,0.6957517]
[1724459005061,3.61624,2765.3,2764.9,0.6957517]
[1724459005249,0.03537067,2765.0,2764.9,0.6957517]
[1724459005448,1.13126615,2765.7,2764.9,0.6957517]
[1724459005449,0.75417743,2765.8,2765.0,2.3793]
[1724459005647,3.61561,2765.8,2765.1,4.47387517]
[1724459006367,3.61548,2765.9,2765.2,3.61635]
[1724459007036,3.61564,2765.8,2765.2,3.61635]
[1724459007877,3.61548,2765.9,2765.2,3.61635]
[1724459008080,7.23103,2765.9,2765.2,3.61635]
[1724459008456,3.61559,2765.8,2765.2,3.61635]
[1724459009180,3.61559,2765.8,2765.0,5.3793]
[1724459009181,2.4015,2765.5,2765.0,3.0]
[1724459009386,2.4015,2765.5,2764.6,2.3793]
[1724459009589,3.6165,2765.1,2764.6,2.3793]
[1724459009768,3.6165,2765.1,2764.5,3.61724]
[1724459011344,3.61633,2765.3,2764.6,3.61712]
[1724459011541,3.61633,2765.3,2764.6,4.340556]
[1724459011784,3.61637,2765.2,2764.6,4.340556]
[1724459012646,3.61637,2765.2,2764.6,3.61712]
[1724459013492,3.61637,2765.2,2764.4,3.61733]
[1724459013646,3.61637,2765.2,2764.5,6.61725]
[1724459015590,3.61637,2765.2,2764.6,3.61715]
[1724459016144,3.61637,2765.2,2764.5,6.61718]
[1724459016880,3.61637,2765.2,2764.6,3.61714]
[1724459017186,3.61655,2765.1,2764.5,3.61718]
[1724459017685,4.41504174,2765.2,2764.5,3.61718]
[1724459017895,4.41504174,2765.2,2764.5,7.23438]
[1724459018279,3.61637,2765.2,2764.6,3.61711]
[1724459019363,3.61637,2765.2,2764.5,3.61718]
[1724459019754,2.4405,2765.1,2764.5,3.61718]
[1724459020162,6.05708,2765.1,2764.5,3.61718]
[1724459021964,4.37052743,2765.3,2764.5,3.61718]
[1724459022292,4.37052743,2765.3,2764.6,3.978788]
[1724459022293,3.61635,2765.3,2764.6,3.978788]
[1724459023027,3.61645,2765.2,2764.6,0.361718]
[1724459023196,3.61645,2765.2,2764.6,3.61713]
[1724459023396,3.61645,2765.2,2764.4,3.61732]
[1724459023719,3.61659,2765.1,2764.4,3.61732]
[1724459024486,3.61659,2765.1,2764.5,3.61727]
[1724459025734,3.61659,2765.1,2764.5,3.61725]
[1724459026229,7.23319,2765.1,2764.5,3.61725]
[1724459026936,3.61659,2765.1,2764.5,7.2345]
[1724459027113,3.61659,2765.1,2764.6,0.72345]
[1724459027436,3.61659,2765.1,2764.6,3.61713]
[1724459028946,4.37076743,2765.1,2764.6,3.61713]
[1724459029408,4.37076743,2765.1,2764.4,3.61734]
[1724459029590,4.37076743,2765.1,2764.5,3.61727]
[1724459029591,0.75417743,2765.0,2764.5,3.61727]
[1724459030474,0.75417743,2765.0,2764.2,3.0]
[1724459030475,3.6171,2764.7,2764.2,3.0]
[1724459030756,0.75417743,2764.6,2763.9,3.618]
[1724459030937,3.61797,2764.0,2763.4,2.3404]
[1724459031304,3.61808,2763.9,2763.4,2.3404]
[1724459031552,3.61808,2763.9,2763.5,0.595915]
[1724459031729,7.99018743,2764.0,2763.3,3.61875]
[1724459031914,4.32594358,2764.1,2763.5,3.61858]
[1724459032121,1.88544358,2764.1,2763.5,3.6185]
[1724459032316,0.75417743,2764.1,2763.6,2.3404]
[1724459033205,0.75417743,2764.1,2763.6,5.95878]
[1724459033838,0.75417743,2764.1,2763.8,3.61819]
[1724459034034,0.75417743,2764.1,2763.6,6.916478]
[1724459034225,0.75417743,2764.2,2763.7,3.61832]
[1724459034624,2.4405,2764.0,2763.0,2.3404]
[1724459034825,4.37270743,2763.6,2762.8,2.3404]
[1724459035025,3.61873,2763.4,2762.9,0.595997]
[1724459035248,3.61873,2763.4,2762.8,2.3404]
[1724459035249,3.61895,2763.3,2762.8,2.3404]
[1724459035549,3.61895,2763.3,2762.7,3.56957]
[1724459035706,3.61908,2763.2,2762.6,3.61969]
[1724459036122,4.37295743,2763.4,2762.7,3.61963]
[1724459036123,7.99178743,2763.4,2762.7,3.61963]
[1724459036320,0.75417743,2763.5,2762.9,3.61937]
[1724459036545,6.81319743,2763.6,2762.9,3.61937]
[1724459036763,0.75417743,2763.5,2762.9,3.61937]
[1724459037048,8.12045901,2763.6,2763.0,3.6192]
[1724459037223,8.12045901,2763.6,2763.0,6.0848]
[1724459037423,7.36628158,2763.6,2763.0,6.0848]
[1724459038051,1.30726158,2763.6,2763.2,3.61899]
[1724459038221,0.75417743,2763.7,2763.2,3.61899]
[1724459038417,6.72624743,2763.8,2763.2,3.61899]
[1724459038855,5.97207,2763.8,2763.2,3.61899]
[1724459039751,9.59038,2763.8,2763.2,3.61899]
[1724459039962,4.65279574,2763.7,2763.0,6.08476]
[1724459040254,1.03445574,2763.7,2763.1,3.61911]
[1724459040456,3.61827,2763.8,2763.2,0.55]
[1724459040643,3.61827,2763.8,2763.1,0.55]
[1724459041328,3.61827,2763.8,2763.2,3.61891]
[1724459042025,3.61827,2763.8,2763.2,3.6189]
[1724459042613,4.9393626,2764.0,2763.2,3.61889]
[1724459042813,4.18518517,2764.0,2763.3,4.16877]
[1724459043020,0.56718517,2764.0,2763.4,6.0842]
[1724459043436,0.56718517,2764.0,2763.5,0.55]
[1724459043644,0.56718517,2764.0,2763.6,3.61845]
[1724459043839,3.61772,2764.2,2763.6,3.61845]
[1724459044017,0.56713158,2764.3,2763.8,3.61812]
[1724459044217,0.56713158,2764.3,2763.6,8.262103]
[1724459044450,4.18476158,2764.3,2763.7,0.55]
[1724459045120,3.61769,2764.2,2763.5,3.61848]
[1724459045319,4.3469699,2764.2,2763.5,3.61848]
[1724459045865,3.61789,2764.1,2763.5,3.61848]
[1724459046069,3.61794,2764.0,2763.4,2.4656]
[1724459046268,3.61794,2764.0,2763.5,0.55]
[1724459047726,3.61794,2764.0,2763.5,4.16859]
[1724459048978,7.9647999,2764.2,2763.5,4.16859]
[1724459049680,3.61782,2764.1,2763.5,4.16859]
[1724459050985,3.61782,2764.1,2763.5,7.7871]
[1724459052075,3.61622081,2764.1,2763.6,3.61846]
[1724459052296,4.10748404,2764.1,2763.5,0.55]
[1724459052588,5.97176,2764.0,2763.5,0.55]
[1724459053154,2.3538,2764.0,2763.5,4.16857]
[1724459053457,0.49126323,2764.1,2763.5,4.16857]
[1724459053458,5.97162,2764.1,2763.5,0.55]
[1724459053675,6.58757421,2764.1,2763.5,0.55]
[1724459054207,5.97162,2764.1,2763.5,4.16852]
[1724459054341,5.97162,2764.1,2763.5,4.16851]
[1724459054834,9.58954,2764.1,2763.5,4.16851]
[1724459055174,5.97162,2764.1,2763.5,4.16851]
[1724459055780,3.61796,2764.0,2763.5,4.16851]
[1724459056086,2.3538,2764.1,2763.5,4.16851]
[1724459056263,3.61783,2764.1,2763.5,8.56575]
[1724459056441,3.61783,2764.1,2763.6,3.61846]
[1724459056860,1.32130901,2764.3,2763.9,3.61797]
[1724459057060,0.56713158,2764.3,2763.9,3.61797]
[1724459057286,0.56713158,2764.3,2763.7,3.61828]
[1724459057594,0.56713158,2764.3,2763.8,0.55]
[1724459057595,4.18472158,2764.3,2763.8,0.55]
[1724459057766,4.18472158,2764.3,2763.6,2.367]
[1724459057767,3.61769,2764.2,2763.6,2.367]
[1724459057973,3.6179,2764.1,2763.6,2.367]
[1724459058200,3.6179,2764.1,2763.6,5.98545]
[1724459058492,7.37295901,2764.3,2763.6,5.98545]
[1724459058700,8.58513053,2764.3,2763.6,5.98545]
[1724459058856,7.37295901,2764.3,2763.7,3.61826]
[1724459059053,6.61878158,2764.3,2763.7,3.61826]
[1724459059996,4.18478158,2764.3,2763.7,3.61826]
[1724459060302,4.18478158,2764.3,2763.8,3.61818]
[1724459060518,4.18478158,2764.3,2763.7,3.61832]
[1724459061397,4.18478158,2764.3,2763.7,4.633697]
[1724459062527,4.93895901,2764.3,2763.7,4.633697]
[1724459065902,1.32130901,2764.3,2763.8,3.61813]
[1724459066238,0.56713158,2764.3,2764.0,2.4387]
[1724459066535,0.56713158,2764.3,2764.1,0.605669]
[1724459067039,0.56713158,2764.3,2764.1,4.223389]
[1724459069157,0.56713158,2764.3,2764.2,10.22406]
[1724459071928,0.56713158,2764.3,2764.2,6.60638]
[1724459072547,0.56713158,2764.3,2764.0,3.61786]
[1724459072726,0.56713158,2764.3,2764.1,3.0]
[1724459073542,0.56713158,2764.3,2764.0,3.61784]
[1724459074057,0.56713158,2764.3,2764.0,4.885309]
[1724459074932,0.56713158,2764.3,2764.1,3.61778]
[1724459075955,0.56713158,2764.3,2764.2,7.78536]
[1724459076939,0.75417743,2764.7,2764.4,3.6173]
[1724459077655,2.3931,2764.6,2764.2,4.16758]
[1724459077851,2.3931,2764.6,2764.3,3.61747]
[1724459078152,0.75417743,2764.7,2764.3,3.61747]
[1724459078363,0.75417743,2764.7,2764.4,3.6174]
[1724459078656,0.75417743,2764.8,2764.4,3.61733]
[1724459078817,0.75417743,2764.8,2764.5,3.61728]
[1724459079159,0.75417743,2764.8,2764.4,3.61733]
[1724459079601,0.75417743,2764.8,2764.2,7.78518]
[1724459079802,0.75417743,2764.8,2764.3,3.61752]
[1724459079803,0.55022736,2764.7,2764.3,3.61752]
[1724459080063,2.3931,2764.6,2764.3,3.61752]
[1724459082250,0.75417743,2764.7,2764.3,3.61752]
[1724459085253,0.75417743,2764.7,2764.4,3.61742]
[1724459086672,0.75417743,2764.7,2764.3,7.23498]
[1724459086870,0.75417743,2764.7,2764.3,3.61746]
[1724459088172,0.75417743,2764.6,2764.3,3.61746]
[1724459089641,0.75417743,2764.5,2764.2,4.16767]
[1724459089819,0.75417743,2764.4,2764.2,4.16767]
[1724459090214,0.75417743,2764.5,2764.2,4.16767]
[1724459092343,0.75417743,2764.5,2763.9,7.44]
[1724459092344,3.61742,2764.4,2763.9,7.44]
[1724459092643,0.75417743,2764.2,2763.9,7.44]
[1724459093883,0.75417743,2764.1,2763.9,7.44]
[1724459094192,0.75417743,2764.1,2763.8,6.61808]
[1724459094193,0.75417743,2764.1,2763.8,3.0]
[1724459094370,0.75417743,2764.0,2763.6,3.0]
[1724459094742,0.75417743,2764.0,2763.6,6.61844]
[1724459095085,0.75417743,2764.1,2763.6,6.61844]
[1724459095586,0.75417743,2764.1,2763.5,3.61859]
[1724459095587,1.70214001,2764.1,2763.5,3.61859]
[1724459095883,0.75417743,2763.9,2763.6,0.55]
[1724459098259,0.75417743,2763.9,2763.6,4.16846]
[1724459098807,0.75417743,2764.0,2763.6,4.16846]
[1724459099102,0.75417743,2763.9,2763.6,4.16846]
[1724459099691,0.75417743,2764.0,2763.7,3.61833]
[1724459100572,0.75417743,2763.9,2763.7,3.61833]
[1724459101821,0.75417743,2764.0,2763.7,6.09853]
[1724459102240,0.75417743,2764.0,2763.7,3.61823]
[1724459104095,0.75417743,2763.9,2763.7,3.61823]
[1724459107713,0.75417743,2763.9,2763.7,7.23647]
[1724459107943,0.75417743,2764.0,2763.7,3.61823]
[1724459108507,0.75417743,2764.0,2763.8,3.61819]
[1724459108855,0.75417743,2763.9,2763.7,3.61823]
[1724459109216,0.75417743,2764.0,2763.7,3.61823]
[1724459109633,0.75417743,2763.9,2763.7,3.61823]
[1724459109868,0.75417743,2764.0,2763.7,3.61823]
[1724459110351,0.75417743,2763.9,2763.7,3.61823]
[1724459116360,3.60176615,2764.1,2763.7,3.61823]
[1724459116361,0.75417743,2764.0,2763.7,3.61823]
[1724459117472,0.75417743,2763.9,2763.7,3.61823]
[1724459117668,0.75417743,2763.9,2763.6,0.55]
[1724459118087,0.75417743,2763.9,2763.6,4.16844]
[1724459120712,0.75417743,2763.9,2763.7,3.61829]
[1724459124278,0.75417743,2763.9,2763.6,0.55]
[1724459124891,0.75417743,2763.8,2763.4,7.44]
[1724459125091,0.75417743,2763.7,2763.5,0.55]
[1724459125290,0.75417743,2763.7,2763.4,4.16872]
[1724459125494,0.75417743,2763.8,2763.4,4.16872]
[1724459127386,0.75417743,2763.8,2763.5,3.61858]
[1724459129659,0.75417743,2763.7,2763.4,0.55]
[1724459129799,3.61861,2763.5,2762.8,3.6195]
[1724459129996,0.75453809,2763.3,2762.7,6.11069]
[1724459130197,3.09473809,2763.2,2762.7,6.721759]
[1724459130501,0.75453809,2762.9,2762.5,7.23972]
[1724459130753,0.75453809,2762.9,2762.5,3.61983]
[1724459130901,0.75453809,2763.0,2762.7,3.6196]
[1724459131856,0.75453809,2763.0,2762.7,3.61956]
[1724459132432,0.75453809,2763.0,2762.8,3.61951]
[1724459132597,0.75453809,2763.1,2762.9,3.61935]
[1724459132797,0.75453809,2763.1,2763.0,3.61925]
[1724459132997,0.75453809,2763.2,2762.9,7.23865]
[1724459133254,0.75453809,2763.2,2763.0,3.61924]
[1724459133550,0.75453809,2763.2,2762.2,3.62027]
[1724459133551,3.6196,2762.8,2762.2,3.62027]
[1724459133748,3.6196,2762.8,2762.0,7.24094]
[1724459133749,0.75389151,2762.6,2762.0,7.24094]
[1724459133911,0.75389151,2762.6,2762.1,3.62041]
[1724459134096,0.75389151,2762.6,2762.2,3.62026]
[1724459134297,0.75389151,2762.7,2762.2,3.62026]
[1724459134553,0.75389151,2762.6,2762.2,3.62026]
[1724459134698,0.75389151,2762.7,2762.2,3.62026]
[1724459134901,0.75389151,2762.6,2762.2,3.62026]
[1724459135218,0.75389151,2762.7,2762.2,3.62026]
[1724459135862,0.75389151,2762.7,2761.6,3.62099]
[1724459135863,0.75389151,2762.3,2761.6,3.62099]
[1724459136065,2.3417,2762.1,2761.5,0.081112]
[1724459136362,5.96221,2762.1,2761.5,0.081112]
[1724459137335,5.96221,2762.1,2761.5,3.702312]
[1724459137561,5.96221,2762.1,2761.5,3.602312]
[1724459137858,6.99584315,2762.1,2761.5,3.602312]
[1724459138073,0.75389151,2762.3,2761.8,3.62073]
[1724459138234,2.3417,2762.5,2762.0,3.62054]
[1724459138419,2.3417,2762.5,2761.6,2.4172]
[1724459138420,0.75389151,2762.7,2762.3,3.62014]
[1724459138620,3.09559151,2762.8,2762.3,3.62014]
[1724459138935,0.5674014,2762.7,2762.1,4.17039]
[1724459139262,3.61994,2762.5,2761.9,3.6206]
[1724459139516,3.61994,2762.5,2761.4,3.62126]
[1724459139517,3.62055,2762.1,2761.4,3.62126]
[1724459139650,2.3417,2762.3,2761.5,3.62111]
[1724459139651,10.33608151,2762.3,2761.5,3.62111]
[1724459139850,10.33608151,2762.3,2761.6,3.62106]
[1724459139851,6.71581151,2762.3,2761.6,3.62106]
[1724459140050,3.62043,2762.1,2761.5,3.62111]
[1724459140227,6.71581151,2762.3,2761.5,3.62111]
[1724459140429,5.96192,2762.3,2761.7,3.62086]
[1724459140857,5.96192,2762.3,2761.8,3.62081]
[1724459140858,2.3417,2762.3,2761.8,3.62081]
[1724459141168,2.3417,2762.3,2761.9,3.62068]
[1724459141339,2.3417,2762.3,2761.7,3.62086]
[1724459141665,2.3417,2762.3,2761.8,0.55]
[1724459141870,2.3417,2762.3,2761.7,7.24172]
[1724459141871,2.3417,2761.8,2760.2,3.17510906]
[1724459142052,3.62118,2761.6,2760.9,3.62199]
[1724459142255,3.62118,2761.6,2761.0,3.62186]
[1724459142256,0.362118,2761.5,2761.0,3.62186]
[1724459142466,5.96258,2761.8,2761.1,3.62166]
[1724459142657,9.58353,2761.8,2761.1,3.62166]
[1724459142863,2.3417,2761.8,2761.2,3.62158]
[1724459143043,2.3417,2761.8,2761.4,3.62134]
[1724459143534,2.3417,2761.7,2761.0,3.62186]
[1724459144471,3.62119,2761.6,2761.0,3.62186]
[1724459145479,2.3417,2761.7,2761.0,3.62186]
[1724459145623,2.3417,2761.7,2761.0,7.24372]
[1724459145830,2.3417,2761.7,2761.1,3.62173]
[1724459146024,0.6558849,2761.6,2761.1,3.62173]
[1724459146969,0.6558849,2761.6,2761.2,3.62161]
[1724459148507,3.78510745,2762.2,2761.0,3.62186]
[1724459148508,2.3417,2762.0,2761.7,3.62091]
[1724459149005,2.3417,2762.0,2761.7,7.24179]
[1724459149206,2.3417,2762.0,2761.5,3.62116]
[1724459149407,2.3417,2762.0,2761.5,7.24229]
[1724459149708,2.937902,2762.0,2761.5,3.62113]
[1724459149893,2.937902,2762.0,2761.6,3.62106]
[1724459150582,2.3417,2762.0,2761.6,3.62106]
[1724459150811,2.3417,2762.0,2761.5,3.62113]
[1724459150812,0.596161,2762.3,2761.4,2.4172]
[1724459150983,2.3417,2762.4,2762.0,3.62056]
[1724459152427,2.3417,2762.4,2761.8,7.24153]
[1724459152721,6.12680745,2762.4,2761.8,3.62072]
[1724459152870,3.6209,2761.8,2761.1,3.62166]
[1724459153070,2.3417,2761.7,2761.2,3.62153]
[1724459153407,2.3417,2761.7,2761.1,3.62166]
[1724459153711,2.3417,2761.7,2761.1,3.62165]
[1724459154214,2.3417,2761.7,2761.2,3.62152]
[1724459154623,2.3417,2761.7,2761.2,3.6216]
[1724459155539,2.3417,2761.7,2760.4,3.62255]
[1724459155540,3.62191,2761.0,2760.4,3.62255]
[1724459156037,3.62191,2761.0,2759.9,3.62326]
[1724459156209,3.62191,2761.0,2760.4,3.62257]
[1724459156638,3.62191,2761.0,2760.5,3.62252]
[1724459157641,2.3417,2761.1,2760.5,3.62252]
[1724459158347,3.62235,2760.7,2759.1,2.4756]
[1724459158527,3.62228,2760.7,2760.0,3.62316]
[1724459158854,3.62227,2760.7,2759.9,3.62327]
[1724459159061,3.62227,2760.7,2760.1,3.623]
[1724459159365,6.0555,2761.0,2760.2,3.62291]
[1724459159366,3.62215,2760.8,2760.2,3.62291]
[1724459159515,6.05548,2761.0,2760.3,3.62276]
[1724459159716,6.05548,2761.0,2760.5,3.62243]
[1724459159717,0.605548,2760.9,2760.5,3.62243]
[1724459159915,3.0,2761.6,2760.2,2.4756]
[1724459159916,2.4335,2761.3,2760.2,2.4756]
[1724459160115,3.62131,2761.5,2760.9,3.622]
[1724459160356,3.62135,2761.4,2760.9,3.622]
[1724459160568,3.62135,2761.4,2760.7,3.62217]
[1724459160743,3.62131,2761.5,2760.8,3.62205]
[1724459161059,0.605481,2761.4,2760.8,3.62205]
[1724459161262,4.226841,2761.4,2760.8,3.62205]
[1724459162486,3.62149,2761.3,2760.6,3.62239]
[1724459162786,3.62149,2761.3,2760.7,0.55]
[1724459162920,4.4063181,2761.3,2760.7,4.17218]
[1724459163763,3.62163,2761.2,2760.4,3.62254]